{"text_format":"3","workbook":"xlsx","n_sheets":2,"sheets":["Etkinlik izleyicisi","Etkinlik Listesi"],"not_rendered":{"charts":1,"defined_names":15},"read":"whole","date_system":"1900"}

{"sheet":"Etkinlik izleyicisi","index":0,"n_rows":23,"n_cols":11,"rows_kept":23,"merged":[[0,0,0,2],[0,3,3,10],[1,0,1,2],[2,0,5,0],[2,1,3,1],[4,1,5,1],[6,0,9,0],[6,1,7,1],[8,1,9,1],[10,0,13,0],[10,1,11,1],[12,1,13,1],[14,0,17,0],[14,1,15,1],[16,1,17,1],[18,0,21,0],[18,1,19,1],[20,1,21,1],[22,0,23,0],[22,1,23,1],[22,2,23,2]]}
["Etkinlik izleyicisi"]
["En popüler 5 etkinliğinizi izleyin! En çok yaptığınız etkinliklerle etkinlik bilgilerinin yerlerini değiştirin. Daha sonra da ilerlemenizi izlemek için bu etkinlikler ile ilgili etkinlik günlüğüne girdiler ekleyin "]
["Bisiklet",{"$f":"SUMIF(Liste[Etkinlik],Kategori1,Liste[Toplam])","v":{"v":19.46,"d":"19.5"}}]
[null,null,"Mil"]
[null,{"$f":"SUMIF(Liste[Etkinlik],Kategori1,Liste[Kalori])","v":847},"Kalori","Tarih","Etkinlik","Başlangıç zamanı","Süre","Toplam","Birim","Kalori","Not"]
[{"$nulls":3},"Tarih","Bisiklet","16:00:00","00:23:00",3.66,{"$f":"IFERROR(VLOOKUP(Liste[[#This Row],[Etkinlik]],EtkinlikAraması,2,FALSE),\"\")","v":"Mil"},173,"Sıcaklık ve nem"]
["Yüzme",{"$f":"SUMIF(Liste[Etkinlik],Kategori2,Liste[Toplam])","v":{"v":1700,"d":"1700.0"}},null,"Tarih","Bisiklet","14:30:00","00:45:00",7.8,{"$f":"IFERROR(VLOOKUP(Liste[[#This Row],[Etkinlik]],EtkinlikAraması,2,FALSE),\"\")","v":"Mil"},330,"Öğleden sonra hava serindi"]
[null,null,"Metre","Tarih","Yüzme","10:00:00","00:30:00",1700,{"$f":"IFERROR(VLOOKUP(Liste[[#This Row],[Etkinlik]],EtkinlikAraması,2,FALSE),\"\")","v":"Metre"},237,"Önceki gece iyi uyudum"]
[null,{"$f":"SUMIF(Liste[Etkinlik],Kategori2,Liste[Kalori])","v":237},"Kalori","Tarih","Etkinlik 3","13:30:00","00:35:00",3227,{"$f":"IFERROR(VLOOKUP(Liste[[#This Row],[Etkinlik]],EtkinlikAraması,2,FALSE),\"\")","v":"Adım"},150]
[{"$nulls":3},"Tarih","Etkinlik 4","05:30:00","00:30:00",30,{"$f":"IFERROR(VLOOKUP(Liste[[#This Row],[Etkinlik]],EtkinlikAraması,2,FALSE),\"\")","v":"Tekrar"},115]
["Etkinlik 3",{"$f":"SUMIF(Liste[Etkinlik],Kategori3,Liste[Toplam])","v":{"v":3227,"d":"3227.0"}},null,"Tarih","Etkinlik 5","06:00:00","00:45:00",5,{"$f":"IFERROR(VLOOKUP(Liste[[#This Row],[Etkinlik]],EtkinlikAraması,2,FALSE),\"\")","v":"Mil"},345]
[null,null,"Adım","Tarih","Bisiklet","10:00:00","00:40:00",8,{"$f":"IFERROR(VLOOKUP(Liste[[#This Row],[Etkinlik]],EtkinlikAraması,2,FALSE),\"\")","v":"Mil"},344]
[null,{"$f":"SUMIF(Liste[Etkinlik],Kategori3,Liste[Kalori])","v":150},"Kalori"]
[]
["Etkinlik 4",{"$f":"SUMIF(Liste[Etkinlik],Kategori4,Liste[Toplam])","v":{"v":30,"d":"30.0"}}]
[null,null,"Tekrar"]
[null,{"$f":"SUMIF(Liste[Etkinlik],Kategori4,Liste[Kalori])","v":115},"Kalori"]
[]
["Etkinlik 5",{"$f":"SUMIF(Liste[Etkinlik],Kategori5,Liste[Toplam])","v":{"v":5,"d":"5.0"}}]
[null,null,"Mil"]
[null,{"$f":"SUMIF(Liste[Etkinlik],Kategori5,Liste[Kalori])","v":345},"Kalori"]
[]
["Toplam",{"$f":"SUM(B21,B17,B13,B9,B5)","v":1694},"Kalori"]

{"sheet":"Etkinlik Listesi","index":1,"n_rows":8,"n_cols":3,"rows_kept":8,"hidden":true,"merged":[[0,1,0,2],[1,1,1,2]]}
[null,"Etkinlik Listesi"]
[null,"Aşağıdaki liste özel etkinliklere bağlıdır ve Etkinlik Günlüğü’ndeki açılan listeyi doldurur. Bu sayfa gizli kalmalıdır."]
[null,"Etkinlik","Birim"]
[null,{"$f":"TRIM(Kategori1)","v":"Bisiklet"},{"$f":"Kategori1Birim","v":"Mil"}]
[null,{"$f":"TRIM(Kategori2)","v":"Yüzme"},{"$f":"Kategori2Birim","v":"Metre"}]
[null,{"$f":"TRIM(Kategori3)","v":"Etkinlik 3"},{"$f":"Kategori3Birim","v":"Adım"}]
[null,{"$f":"TRIM(Kategori4)","v":"Etkinlik 4"},{"$f":"Kategori4Birim","v":"Tekrar"}]
[null,{"$f":"TRIM(Kategori5)","v":"Etkinlik 5"},{"$f":"Kategori5Birim","v":"Mil"}]